Cogmind - Beta 12 @@@ ROGUE MODE // 2023.04.03 @ 01:14:02 Player: dhtilly Result: Destroyed by D-53 Grenadier with Mini Grenade Launcher Performance ------------- Evolutions (0) 0 Regions Visited (2) 400 Robots Destroyed (23) 115 Value Destroyed (621) 621 Prototype IDs (0) 0 Alien Tech Used (0) 0 Bonus (0) 0 TOTAL SCORE: 1136 Bonus ------- None Cogmind --------- Core Integrity 0/250 Matter 270/300 Energy 160/160 System Corruption 0% Temperature Cool (0) Movement Treading (160) Location -10/Mines Parts ------- > --- POWER (1) -------- Light Nuclear Core > --- PROPULSION (2) --- Light Treads Light Treads > --- UTILITY (2) ------ Large Storage Unit Seismic Detector > --- WEAPON (2) ------- Medium Laser Spread Laser > --- INVENTORY (15) --- Wheel Wheel Improved Heat Sink High-capacity Storage Unit High-capacity Battery (250) High-capacity Matter Pod (200) Structural Scanner Signal Interpreter Targeting Computer Targeting Computer Light Armor Plating Spread Laser Grenade Launcher Peak State ------------ > --- POWER ------------ Light Nuclear Core > --- PROPULSION ------- Light Treads Light Treads > --- UTILITY ---------- Improved Heat Sink Large Storage Unit > --- WEAPON ----------- Medium Laser Spread Laser > --- INVENTORY -------- Wheel Wheel High-capacity Storage Unit High-capacity Battery High-capacity Matter Pod Seismic Detector Spread Laser Grenade Launcher [Rating: 12] Favorites ----------- Power Ion Engine Engine Ion Engine Power Core Light Nuclear Core Propulsion Light Treads Treads Light Treads Leg Aluminum Leg Utility Improved Heat Sink Device Improved Heat Sink Storage Large Storage Unit Weapon Medium Laser Energy Gun Medium Laser Ballistic Gun Light Assault Rifle Launcher Grenade Launcher Build | -11 -10 -10 ------- Run | Jun Mat Min Slots Evolved . | . . . Power . | . . . Propulsion . | . . . Utility . | . . . Weapon . | . . . Parts Attached 24 | 6 14 4 Power 4 | 1 2 1 Engine 3 | 1 2 . Core 1 | . . 1 Reactor . | . . . Propulsion 6 | 2 4 . Treads 4 | 2 2 . Leg 2 | . 2 . Wheel . | . . . Hover . | . . . Flight . | . . . Utility 7 | 1 5 1 Device 5 | . 4 1 Storage 2 | 1 1 . Processor . | . . . Hackware . | . . . Protection . | . . . Artifact . | . . . Weapon 7 | 2 3 2 Energy Gun 4 | . 3 1 Energy Cannon . | . . . Ballistic Gun 2 | 2 . . Ballistic Cannon . | . . . Launcher 1 | . . 1 Special Weapon . | . . . Impact Weapon . | . . . Slashing Weapon . | . . . Piercing Weapon . | . . . Special Melee Weapon . | . . . Unidentified Prototypes . | . . . Parts Lost 1 | . . 1 Power 1 | . . 1 Propulsion . | . . . Utility . | . . . Weapon . | . . . Highest Loss Streak 1 | . . 1 To Critical Strikes . | . . . Average Slot Usage (%) 98 | . 98 99 Engine 9 | . 14 1 Core 4 | . . 12 Treads 21 | . 17 28 Leg 6 | . 10 . Device 13 | . 12 14 Storage 14 | . 14 14 Energy Gun 22 | . 20 27 Ballistic Gun 5 | . 7 . Naked Turns . | . . . Heaviest Build 31 | 12 31 31 Greatest Support 40 | 40 40 40 Greatest Overweight (x) . | . . . Average Overweight (x) . | . . . Largest Inventory Capacity 15 | 8 15 15 Average Capacity 11 | 7 10 15 Most Carried 13 | 4 10 13 Average Carried 8 | 2 7 9 Final Capacity 15 | 8 15 15 Final Carried 13 | 4 9 13 Class Distribution -------------------- 89% | Mutant 10% | Scavenger-Mutant Dominant Class ---------------- Mutant | -10/Materials Mutant | -10/Mines Resources | -11 -10 -10 ----------- Run | Jun Mat Min Matter Collected 698 | 183 470 45 Remotely . | . . . Salvage Created 866 | . 760 106 Parts 45 | . 38 7 Haulers Intercepted 2 | . 2 . Recyclers Shooed 2 | . 2 . Parts Field Recycled . | . . . Retrieved Matter . | . . . Parts Self-Destructed . | . . . Prevented . | . . . Kills | -11 -10 -10 ------- Run | Jun Mat Min Combat Hostiles Destroyed 27 | . 12 15 Guns 14 | . 12 2 AOE 13 | . . 13 Classes Destroyed 8 | . 6 2 Worker 1 | . 1 . Tunneler 2 | . . 2 Hauler 2 | . 2 . Recycler 1 | . 1 . Operator 1 | . 1 . Watcher 2 | . 2 . Grunt 14 | . 12 2 Assembled 13 | . . 13 Best Kill Streak 15 | . 3 15 Combat Bots Only 13 | . 2 13 Max Kills in Single Turn 5 | . 3 5 Gunslinging . | . . . Exploded 5 | . . 5 Melee . | . . . Uniques/NPCs Destroyed . | . . . Combat | -11 -10 -10 -------- Run | Jun Mat Min Damage Taken 1122 | . 612 510 Core 258 | . 148 110 Absorbed by Shields . | . . . Regen/Repaired (Parts) 67 | . 67 . Core Remaining (%) 100 | 100 . . Volleys Fired 66 | . 56 10 Largest 2 | . 2 2 Hottest 115 | . 115 115 Shots Fired 124 | . 108 16 Gun 120 | . 108 12 Cannon . | . . . Launcher 4 | . . 4 Special . | . . . Kinetic 53 | . 53 . Thermal 67 | . 55 12 Explosive 4 | . . 4 Electromagnetic . | . . . Robot Hit Streak 13 | . 13 12 Robot Miss Streak 5 | . 5 2 Penetration Max . | . . . Secondary Targets . | . . . Shots Hit Robots 91 | . 78 13 Core Hits 93 | . 46 47 Critical Kills 1 | . 1 . Critical Parts Destroyed . | . . . Critical Strikes 6 | . 6 . Burn 5 | . 5 . Destroy 1 | . 1 . Melee Attacks . | . . . Impact . | . . . Slashing . | . . . Piercing . | . . . Sneak Attacks . | . . . Combat Hostiles . | . . . Follow-up Attacks . | . . . Damage Inflicted 2006 | . 1086 920 Guns 965 | . 852 113 Cannons . | . . . Explosions 1034 | . 234 800 Melee . | . . . Ramming 7 | . . 7 Kinetic 313 | . 313 . Thermal 673 | . 560 113 Explosive 800 | . . 800 Electromagnetic 213 | . 213 . Impact . | . . . Slashing . | . . . Piercing . | . . . Highest Corruption . | . . . Average Corruption . | . . . Corruption Purged . | . . . Corruption Blocked . | . . . Overload Shots . | . . . Overflow Damage 5 | . 5 . Projectiles . | . . . Explosions 5 | . 5 . Melee . | . . . Knockbacks . | . . . Impact . | . . . Kinetic . | . . . Secondary . | . . . Self-Inflicted Damage 155 | . 97 58 Shots 6 | . 3 3 Rammed . | . . . Targets Rammed 1 | . . 1 Kicked . | . . . Crushed 1 | . . 1 Highest Temperature 135 | . 48 135 Average Temperature 18 | . 10 67 Received Heat Transfer 410 | . 315 95 Siege Activations . | . . . Robots Corrupted 1 | . 1 . Combat Hostiles . | . . . Parts Fried . | . . . Impact Corruptions . | . . . Robots Melted . | . . . Combat Hostiles . | . . . Parts Melted 3 | . 3 . Heat Transferred 2091 | . 1863 228 Parts Sabotaged . | . . . Parts Stolen . | . . . Parts Stripped . | . . . Power Chain Reactions 1 | . 1 . Missiles Intercepted . | . . . Alert | -11 -10 -10 ------- Run | Jun Mat Min Peak Influence 200 | . 200 86 Initial 15 | . . 15 Average 64 | . 82 38 Maximum Alert Level 1 | . 1 . Low Security (%) 98 | 100 98 100 Level 1 1 | . 1 . Level 2 . | . . . Level 3 . | . . . Level 4 . | . . . Level 5 . | . . . High Security . | . . . Max Security . | . . . Squads Dispatched 3 | . 3 . Investigation 1 | . 1 . Extermination . | . . . Reinforcement 2 | . 2 . Assault . | . . . Garrison . | . . . Intercept . | . . . Searches Triggered . | . . . Construction Impeded . | . . . Haulers Reinforced . | . . . Active Scanning Responses . | . . . Cargo Convoy Interrupts . | . . . Stealth | -11 -10 -10 --------- Run | Jun Mat Min Distress Signals 2 | . 2 . Communications Jammed . | . . . Distress Signals . | . . . Times Spotted 43 | . 21 22 Peak Tracking Total 18 | . 3 18 Tactical Retreats . | . . . Traps | -11 -10 -10 ------- Run | Jun Mat Min Traps Triggered 1 | . 1 . Indirectly . | . . . Trap Hack Attempts . | . . . Triggered . | . . . Disarmed . | . . . Reprogrammed . | . . . Reused . | . . . Traps Extracted . | . . . Installed . | . . . Triggered . | . . . Machines | -11 -10 -10 ---------- Run | Jun Mat Min Machines Disabled 2 | . 2 . Max in Single Turn 2 | . 2 . Machines Repaired . | . . . Machines Sabotaged . | . . . Overloaded Fab Kills . | . . . Hacking | -11 -10 -10 --------- Run | Jun Mat Min Machines Accessed 7 | . 7 . Terminals 6 | . 6 . Fabricators . | . . . Repair Stations 1 | . 1 . Recycling Units . | . . . Scanalyzers . | . . . Garrison Access . | . . . Total Hacks 28 | . 28 . Successful 8 | . 8 . Failed 19 | . 19 . Catastrophic 4 | . 4 . Database Lockouts 1 | . 1 . Manual 16 | . 16 . Terminals 25 | . 25 . Fabricators . | . . . Repair Stations 3 | . 3 . Recycling Units . | . . . Scanalyzers . | . . . Garrison Access . | . . . Terminal Hacks 4 | . 4 . Part Schematic 2 | . 2 . Alert Level 1 | . 1 . Unreport Threat 1 | . 1 . Fabricator Hacks . | . . . Repair Station Hacks 2 | . 2 . Scan Component 1 | . 1 . Repair 1 | . 1 . Recycling Unit Hacks . | . . . Scanalyzer . | . . . Garrison Access Hacks . | . . . Unauthorized Hacks 2 | . 2 . Terminals 2 | . 2 . Botnet 2 | . 2 . Fabricators . | . . . Repair Stations . | . . . Recycling Units . | . . . Scanalyzers . | . . . Garrison Access . | . . . Data Cores Recovered . | . . . Used . | . . . Hacking Detections 6 | . 6 . Full Trace Events 1 | . 1 . Feedback Events . | . . . Feedback Blocked . | . . . Robot Schematics Acquired . | . . . Robots Built . | . . . Authchips . | . . . Time . | . . . Total Robot Build Rating . | . . . Part Schematics Acquired 2 | . 2 . Parts Built . | . . . Authchips . | . . . Time . | . . . Total Part Build Rating . | . . . Parts Repaired 1 | . 1 . Time 26 | . 26 . Parts Recycled . | . . . Recycled Matter . | . . . Retrieved Matter . | . . . Retrieved Components . | . . . Parts Scanalyzed . | . . . Part Schematics Acquired . | . . . Parts Damaged . | . . . Bothacking | -11 -10 -10 ------------ Run | Jun Mat Min Used RIF Installer . | . . . Robots Hacked . | . . . Non-combat . | . . . Combat . | . . . Robot Hacks Applied . | . . . Relay Couplers Released . | . . . Fabnet Peak Effective % . | . . . Robots Rewired . | . . . Allies Hacked . | . . . Hacks Repelled . | . . . Allies | -11 -10 -10 -------- Run | Jun Mat Min Total Allies . | . . . Largest Group . | . . . Highest-Rated Group . | . . . Highest-Rated Ally . | . . . Total Orders . | . . . Ally Attacks . | . . . Total Damage . | . . . Kills . | . . . Allies Corrupted . | . . . Allies Melted . | . . . Intel | -11 -10 -10 ------- Run | Jun Mat Min Robot Analysis Total . | . . . Derelict Logs Recovered 1 | . . 1 Drone Launches . | . . . Drone Recoveries . | . . . Exploration | -11 -10 -10 ------------- Run | Jun Mat Min Turns Passed 2202 | 61 1348 793 Spaces Moved 1229 | 33 782 414 Core 4 | 4 . . Treads 871 | 29 428 414 Legs 354 | . 354 . Wheels . | . . . Hover . | . . . Flight . | . . . Fastest Speed 50 | 50 120 160 Average Speed 148 | 146 141 160 Slowest Speed 160 | 160 160 160 Overloaded Moves . | . . . Propulsion Burnouts . | . . . Robots Hopped . | . . . Cave-ins Triggered . | . . . Exploration Rate (%) 60 | 4 96 81 Regions Visited 2 Branch Regions 1 Pre-discovered Areas 2 | . . 2 Known Exits Taken . | . . . Unknown Exits Taken 2 | 1 1 . Scrap Searched 1 | . . 1 Spaces Dug . | . . . Terrain Destroyed 34 | . 5 29 Melee . | . . . Projectile . | . . . AOE 34 | . 5 29 Terrain Rammed . | . . . Walls Destroyed . | . . . Machines Disabled . | . . . Actions | -11 -10 -10 --------- Run | Jun Mat Min Total 1503 | 43 934 526 Wait 135 | . 43 92 Move 1227 | 32 781 414 Hop . | . . . Pick Up 28 | 5 18 5 Fast Attach 8 | 5 3 . Attach 4 | 1 2 1 Detach 3 | . 3 . Swap 12 | . 9 3 Drop 19 | . 19 . Fire 66 | . 56 10 Melee . | . . . Ram . | . . . Kick . | . . . Crush 1 | . . 1 Escape Stasis . | . . . Rewire . | . . . Trap . | . . . Miscellaneous . | . . . Route ------- -11/Junkyard -10/Materials (discovered 5 exits: [*Mat x3] / [*Min x2]) -10/Mines (discovered 2 exits: [*Mat x2]) History --------- Turn | Location | Event 14 | -11/Junkyard | Discovered new exit (range 15) 62 | -11/Junkyard | Entered Materials 317 | -10/Materials | Build established: Mutant 318 | -10/Materials | Discovered new exit (range 10) 340 | -10/Materials | Discovered new exit (range 16) 462 | -10/Materials | Core integrity fell below 50% 497 | -10/Materials | Discovered new exit (range 10) 720 | -10/Materials | Repaired Lgt. Treads? 798 | -10/Materials | Central database locked down 908 | -10/Materials | Discovered new exit (range 8) 1096 | -10/Materials | Discovered new exit (range 3) 1410 | -10/Materials | Entered Mines 1416 | -10/Mines | Met a Derelict bent on vengeance 1476 | -10/Mines | Assembled infested the area 1492 | -10/Mines | Core integrity fell below 20% 1512 | -10/Mines | Destroyed 13 combat bots 1650 | -10/Mines | Learned location of Storage (-9) 1788 | -10/Mines | Discovered new exit (range 3) 1882 | -10/Mines | Discovered new exit (range 5) 2203 | -10/Mines | Destroyed by D-53 Grenadier with Mini Grenade Launcher Last Messages --------------- 01827_ Found Mining Laser. 01827_ Found Targeting Computer. 01827_ Found Mining Laser. 01827_ Found Aluminum Leg. 01827_ Found 39 Matter. 01828_ Acquired 39 matter. 01830_ Acquired Targeting Computer. 01882_ EXIT=FOUND 01883_ A derelict emerges from the shadows: "Are any of them following you? I'm here trying to lose some heat after our second raid on Storage failed. Whatever you do stay away from that place, they've tightened security following our previous successful raids." World map confirmed: -9/Storage. 01885_ SC-FM2(g): "We scattered so the Unaware couldn't effectively use their advantage in numbers, and I suggest you do the same." 01885_ SC-FM2(g) slips back into the shadows. 02074_ Acquired Lgt. Armor Plating. 02077_ Acquired Structural Scanner. 02083_ Acquired Targeting Computer. 02087_ Acquired Signal Interpreter. Map ----- +----------------------------------------------------+ | ??????????????????????????????????????? | | ??????????????????????????????????????? | | ??????????????????????????????????????? | | ??????????????????????????????????????? | | ??????????????????????????????????????? | | ??????????????????????????????????????? | | ??????????????????????????????????????? | | ??????????????????????????????????????? | | ??????????????????????????????????????? | | ###???????????????????????????????????? | | #???????????????????????????????????? | | #?????????????????????????# ????????? | | # #??????????????????#?????# ???????? | | # #????????????????? #??## ???????? | | # #?????????????????? ## ????????? | | # #?????????????????? ????????? | | #??????????????????? #????????? | | ###??????????????????? #????????? | | #?????????????????????# #????????? | | #?????????????????????# #????????? | | #?????????????????????# #????????? | | #?????????????????????# ?????????? | | #?????????????????????? #?????????? | | #####??????????????????# d #?????????? | | ## ##?????????????????# d ##????????? | | # ##????????????????# @ ##???????? | | #???????????????# #???????? | | * #??????????????# #???????? | | =% #??????????????# #???????? | | %==##??????????????## #???????? | | ###????????????????# ##???????? | | ####??????????????????#### #????????? | | ?????????????????????????# ##????????? | | ?????????????????????????# #?????????? | | ?????????????????????????# #?????????? | | ?????????????????????????# #?????????? | | ?????????????????????????# #?????????? | | ?????????????????????????# ##????????? | | ??????????#??????????????# #????????? | | ??????????# ?????????????###u#????????? | | ??????????? ###????????????# #????????? | | ???????????? ????????????# #????????? | | ????????????# #?###???????# #????????? | | #???????# ### #???????# #????????? | | ????????????# ## #???????# #????????? | | ??? ##??????# ##??????# #??#####?? | | ?## ##????# ##?##### #?##! ##? | | ## ##???# ### ###! #? | | # ##??## ## #? | | #???# ## #? | +----------------------------------------------------+ Best States ------------- Heat Dissipation 39 Energy Generation 14 Energy Capacity 250 Matter Stores 300 Matter Capacity 300 Sight Range 16 Terrain Scan Density 10 Evasion (%) 55 Recoil Reduction 2 Item Schematics ----------------- Huge Storage Unit | -10/Materials | Hacked Cargo Storage Unit | -10/Materials | Hacked Robot Schematics ------------------ None Fabricated ------------ Nothing Alien Tech Used ----------------- None Achievements -------------- None Challenges ------------ None Game ------ Seed ScanIonBrace Manual? 0 Play Time 00:15:41 Cumulative 160.8 hours Start 2023.04.03 @ 00:58:17 End 2023.04.03 @ 01:14:02 Sessions 1 Manual Loads 0 Difficulty Rogue Special Mode None Game No. 86 Rogue 86 Adventurer 0 Explorer 0 Win Type - Total 2 Types 2/0/0/0/0/0/0/0/0 Lore% 52 Gallery% 64 Achievement% 54 Wizard Run 0 Options --------- ASCII 0 Keyboard 1 Movement Vi Keybinds 0 Fullscreen 1 Font 12/Smallcaps Map View 83x54 Tactical HUD 1 Map Filters NONE Filters NONE Steam 1 RUN: 43a33679-4f83-4dea-9c0e-ad41ba836de8